fUSD/lending_fUSD_20260408
["ID","MTS","AMOUNT","RATE_DAILY","PERIOD"]
[420043549,1775631047380,-500.0,0.00013698,2]
[420043550,1775631047390,-500.0,0.00013698,2]
[420043551,1775631047400,-500.0,0.00013698,2]
[420043552,1775631047409,-500.0,0.00013698,2]
[420043553,1775631047419,-500.0,0.00013698,2]
[420043554,1775631047429,-500.0,0.00013698,2]
[420043555,1775631047438,-500.0,0.00013698,2]
[420043556,1775631047448,-500.0,0.00013698,2]
[420043557,1775631047457,-500.0,0.00013698,2]
[420043558,1775631047468,-500.0,0.00013698,2]
[420043559,1775631047478,-500.0,0.00013698,2]
[420043560,1775631047488,-500.0,0.00013698,2]
[420043561,1775631047497,-500.0,0.00013698,2]
[420043562,1775631047508,-500.0,0.00013698,2]
[420043563,1775631047518,-500.0,0.00013698,2]
[420043564,1775631047528,-500.0,0.00013698,2]
[420043565,1775631047538,-500.0,0.00013698,2]
[420043566,1775631047548,-644.24464926,0.00013698,2]
[420043567,1775631047557,-500.0,0.00013698,2]
[420043568,1775631047567,-500.0,0.00013698,2]
[420043569,1775631047577,-500.0,0.00013698,2]
[420043570,1775631047587,-500.0,0.00013698,2]
[420043571,1775631047597,-500.0,0.00013698,2]
[420043572,1775631047607,-500.0,0.00013698,2]
[420043573,1775631047616,-542.71692042,0.00013698,2]
[420043574,1775631047626,-500.0,0.00013698,2]
[420043575,1775631047636,-500.0,0.00013698,2]
[420043576,1775631047646,-500.0,0.00013698,2]
[420043577,1775631047656,-500.0,0.00013698,2]
[420043578,1775631047666,-500.0,0.00013698,2]
[420043579,1775631047675,-500.0,0.00013698,2]
[420043580,1775631047685,-500.0,0.00013698,2]
[420043581,1775631047696,-500.0,0.00013698,2]
[420043582,1775631047706,-500.0,0.00013698,2]
[420043583,1775631047716,-562.38643831,0.00013698,2]
[420043584,1775631047726,-500.0,0.00013698,2]
[420043585,1775631047735,-500.0,0.00013698,2]
[420043586,1775631047746,-500.0,0.00013698,2]
[420043587,1775631047756,-500.0,0.00013698,2]
[420043588,1775631047767,-500.0,0.00013698,2]
[420043589,1775631047776,-500.0,0.00013698,2]
[420043590,1775631047786,-500.0,0.00013698,2]
[420043591,1775631047796,-500.0,0.00013698,2]
[420043592,1775631047806,-500.0,0.00013698,2]
[420043593,1775631047816,-500.0,0.00013698,2]
[420043594,1775631047826,-500.0,0.00013698,2]
[420043595,1775631047836,-500.0,0.00013698,2]
[420043596,1775631047845,-500.0,0.00013698,2]
[420043597,1775631047855,-500.0,0.00013698,2]
[420043598,1775631047864,-500.0,0.00013698,2]
[420043599,1775631047874,-500.0,0.00013698,2]
[420043600,1775631047885,-500.0,0.00013698,2]
[420043601,1775631047900,-500.0,0.00013698,2]
[420043602,1775631047910,-215.39830433,0.00013698,2]
[420043603,1775631047920,-553.39225555,0.00013698,2]
[420043604,1775631047930,-686.05,0.00013698,2]
[420043605,1775631047939,-686.05,0.00013698,2]
[420043606,1775631047950,-686.05,0.00013698,2]
[420043607,1775631047960,-686.05,0.00013698,2]
[420043608,1775631047970,-686.05,0.00013698,2]
[420043609,1775631047980,-686.05,0.00013698,2]
[420043610,1775631047990,-686.05,0.00013698,2]
[420043611,1775631047999,-686.05,0.00013698,2]
[420043612,1775631048009,-686.05,0.00013698,2]
[420043613,1775631048019,-686.05,0.00013698,2]
[420043614,1775631048029,-686.05,0.00013698,2]
[420043615,1775631048040,-686.05,0.00013698,2]
[420043616,1775631048050,-686.05,0.00013698,2]
[420043617,1775631048060,-686.05,0.00013698,2]
[420043618,1775631048070,-686.05,0.00013698,2]
[420043619,1775631048081,-686.05,0.00013698,2]
[420043620,1775631048091,-686.05,0.00013698,2]
[420043621,1775631048102,-686.05,0.00013698,2]
[420043622,1775631048112,-686.05,0.00013698,2]
[420043623,1775631048122,-686.05,0.00013698,2]
[420043624,1775631048133,-686.05,0.00013698,2]
[420043625,1775631048143,-686.05,0.00013698,2]
[420043626,1775631048153,-686.05,0.00013698,2]
[420043627,1775631048163,-686.1328036,0.00013698,2]
[420043628,1775631048173,-264.78361919,0.00013698,2]
[420043629,1775631048184,-500.0,0.00013698,2]
[420043630,1775631048194,-500.0,0.00013698,2]
[420043631,1775631048204,-633.831471,0.00013698,2]
[420043632,1775631048214,-500.0,0.00013698,2]
[420043633,1775631048224,-500.0,0.00013698,2]
[420043634,1775631048235,-500.0,0.00013698,2]
[420043635,1775631048245,-500.0,0.00013698,2]
[420043636,1775631048255,-500.0,0.00013698,2]
[420043637,1775631048265,-500.0,0.00013698,2]
[420043638,1775631048275,-500.0,0.00013698,2]
[420043639,1775631048286,-500.0,0.00013698,2]
[420043640,1775631048297,-500.0,0.00013698,2]
[420043641,1775631048307,-500.0,0.00013698,2]
[420043642,1775631048317,-500.0,0.00013698,2]
[420043643,1775631048327,-223.3967903,0.00013698,2]
[420043644,1775631048337,-500.03954585,0.00013698,2]
[420043645,1775631048347,-500.0,0.00013698,2]
[420043646,1775631048357,-500.0,0.00013698,2]
[420043647,1775631048367,-500.0,0.00013698,2]
[420043648,1775631048377,-500.0,0.00013698,2]
[420043649,1775631048387,-500.0,0.00013698,2]
[420043650,1775631048398,-500.0,0.00013698,2]
[420043651,1775631048408,-500.0,0.00013698,2]
[420043652,1775631048418,-500.0,0.00013698,2]
[420043653,1775631048428,-500.0,0.00013698,2]
[420043654,1775631048437,-500.0,0.00013698,2]
[420043655,1775631048447,-500.0,0.00013698,2]
[420043656,1775631048457,-500.0,0.00013698,2]
[420043657,1775631048467,-500.0,0.00013698,2]
[420043658,1775631048480,-500.0,0.00013698,2]
[420043659,1775631048490,-500.0,0.00013698,2]
[420043660,1775631048500,-500.0,0.00013698,2]
[420043661,1775631048510,-500.0,0.00013698,2]
[420043662,1775631048519,-375.13,0.00013698,2]
[420043663,1775631048529,-500.0,0.00013698,2]
[420043664,1775631048539,-500.0,0.00013698,2]
[420043665,1775631048549,-500.0,0.00013698,2]
[420043666,1775631048560,-500.0,0.00013698,2]
[420043667,1775631048570,-500.0,0.00013698,2]
[420043668,1775631048581,-500.0,0.00013698,2]
[420043669,1775631048591,-500.0,0.00013698,2]
[420043670,1775631048601,-467.66178343,0.00013698,2]
[420043671,1775631048611,-500.0,0.00013698,2]
[420043672,1775631048622,-500.0,0.00013698,2]
[420043673,1775631048632,-500.0,0.00013698,2]
[420043674,1775631048643,-500.0,0.00013698,2]
[420043675,1775631048653,-500.0,0.00013698,2]
[420043676,1775631048664,-500.0,0.00013698,2]
[420043677,1775631048675,-500.0,0.00013698,2]
[420043678,1775631048685,-500.0,0.00013698,2]
[420043679,1775631048696,-500.0,0.00013698,2]
[420043680,1775631048707,-500.0,0.00013698,2]
[420043681,1775631048718,-248.76967055,0.00013698,2]
[420043682,1775631048729,-500.0,0.00013698,2]
[420043683,1775631048739,-500.0,0.00013698,2]
[420043684,1775631048750,-500.0,0.00013698,2]
[420043685,1775631048761,-500.0,0.00013698,2]
[420043686,1775631048771,-500.0,0.00013698,2]
[420043687,1775631048782,-637.2484516,0.00013698,2]
[420043688,1775631048792,-500.0,0.00013698,2]
[420043689,1775631048803,-500.0,0.00013698,2]
[420043690,1775631048812,-500.0,0.00013698,2]
[420043691,1775631048822,-500.0,0.00013698,2]
[420043692,1775631048832,-500.0,0.00013698,2]
[420043693,1775631048842,-500.0,0.00013698,2]
[420043694,1775631048853,-500.0,0.00013698,2]
[420043695,1775631048863,-500.0,0.00013698,2]
[420043696,1775631048873,-500.0,0.00013698,2]
[420043697,1775631048884,-500.0,0.00013698,2]
[420043698,1775631048894,-500.0,0.00013698,2]
[420043699,1775631048904,-500.0,0.00013698,2]
[420043700,1775631048915,-500.0,0.00013698,2]
[420043701,1775631048925,-522.8150328,0.00013698,2]
[420043702,1775631048936,-500.0,0.00013698,2]
[420043703,1775631048947,-549.08039111,0.00013698,2]
[420043704,1775631048958,-500.0,0.00013698,2]
[420043705,1775631048968,-500.0,0.00013698,2]
[420043706,1775631048978,-500.0,0.00013698,2]
[420043707,1775631048989,-500.0,0.00013698,2]
[420043708,1775631048999,-500.0,0.00013698,2]
[420043709,1775631049009,-500.0,0.00013698,2]
[420043710,1775631049019,-500.0,0.00013698,2]
[420043711,1775631049030,-500.0,0.00013698,2]
[420043712,1775631049040,-500.14075642,0.00013698,2]
[420043713,1775631049050,-500.0,0.00013698,2]
[420043714,1775631049060,-500.0,0.00013698,2]
[420043715,1775631049070,-500.0,0.00013698,2]
[420043716,1775631049080,-500.0,0.00013698,2]
[420043717,1775631049091,-500.0,0.00013698,2]
[420043718,1775631049102,-500.0,0.00013698,2]
[420043719,1775631049113,-500.0,0.00013698,2]
[420043720,1775631049124,-500.0,0.00013698,2]
[420043721,1775631049134,-500.0,0.00013698,2]
[420043722,1775631049145,-500.0,0.00013698,2]
[420043723,1775631049155,-500.0,0.00013698,2]
[420043724,1775631049166,-500.0,0.00013698,2]
[420043725,1775631049177,-500.0,0.00013698,2]
[420043726,1775631049188,-500.0,0.00013698,2]
[420043727,1775631049198,-504.74596653,0.00013698,2]
[420043728,1775631049208,-500.0,0.00013698,2]
[420043729,1775631049219,-500.0,0.00013698,2]
[420043730,1775631049229,-500.0,0.00013698,2]
[420043731,1775631049238,-500.0,0.00013698,2]
[420043732,1775631049249,-500.0,0.00013698,2]
[420043733,1775631049259,-500.0,0.00013698,2]
[420043734,1775631049269,-500.0,0.00013698,2]
[420043735,1775631049279,-500.0,0.00013698,2]
[420043736,1775631049290,-500.0,0.00013698,2]
[420043737,1775631049301,-500.0,0.00013698,2]
[420043738,1775631049312,-500.0,0.00013698,2]
[420043739,1775631049602,-500.0,0.00013698,2]
[420043740,1775631049612,-500.0,0.00013698,2]
[420043741,1775631049621,-630.71,0.00013698,2]
[420043742,1775631049631,-500.0,0.00013698,2]
[420043743,1775631049641,-500.0,0.00013698,2]
[420043744,1775631049650,-500.0,0.00013698,2]
[420043745,1775631049659,-500.0,0.00013698,2]
[420043746,1775631049671,-500.0,0.00013698,2]
[420043747,1775631049682,-500.0,0.00013698,2]
[420043748,1775631049693,-500.0,0.00013698,2]
[420043749,1775631049703,-595.48595604,0.00013698,2]
[420043750,1775631049713,-500.0,0.00013698,2]
[420043751,1775631049723,-500.0,0.00013698,2]
[420043752,1775631049734,-500.0,0.00013698,2]
[420043753,1775631049744,-500.0,0.00013698,2]
[420043754,1775631049754,-500.0,0.00013698,2]
[420043755,1775631049763,-500.0,0.00013698,2]
[420043756,1775631049772,-500.0,0.00013698,2]
[420043757,1775631049782,-500.0,0.00013698,2]
[420043758,1775631049791,-500.0,0.00013698,2]
[420043759,1775631049801,-499.6872898,0.00013698,2]
[420043760,1775631049811,-2138.0,0.00013699,2]
[420043761,1775631049821,-150.0,0.00013699,2]
[420043762,1775631049831,-150.0,0.00013699,2]
[420043763,1775631049841,-150.0,0.00013699,2]
[420043764,1775631049852,-200.0,0.00013699,2]
[420043765,1775631049862,-476.15,0.00013699,2]
[420043766,1775631049872,-396.8,0.00013699,2]
[420043767,1775631049882,-330.66,0.00013699,2]
[420043768,1775631049894,-275.55,0.00013699,2]
[420043769,1775631049903,-229.63,0.00013699,2]
[420043770,1775631049913,-191.36,0.00013699,2]
[420043771,1775631049922,-159.46,0.00013699,2]
[420043772,1775631049932,-797.34,0.00013699,2]
[420043773,1775631049942,-500.0,0.00013699,2]
[420043774,1775631049951,-500.68321897,0.00013699,2]
[420043775,1775631049961,-500.27274938,0.00013699,2]
[420043776,1775631049970,-500.0,0.00013699,2]
[420043777,1775631049980,-500.0,0.00013699,2]
[420043778,1775631049990,-500.0,0.00013699,2]
[420043779,1775631050000,-500.0,0.00013699,2]
[420043780,1775631050009,-501.69020237,0.00013699,2]
[420043781,1775631050019,-500.0,0.00013699,2]
[420043782,1775631050028,-516.67152996,0.00013699,2]
[420043783,1775631050038,-500.0,0.00013699,2]
[420043784,1775631050047,-500.0,0.00013699,2]
[420043785,1775631050057,-500.0,0.00013699,2]
[420043786,1775631050066,-500.0,0.00013699,2]
[420043787,1775631050076,-500.0,0.00013699,2]
[420043788,1775631050086,-500.0,0.00013699,2]
[420043789,1775631050096,-500.0,0.00013699,2]
[420043790,1775631050107,-500.0,0.00013699,2]
[420043791,1775631050118,-164.42313659,0.00013699,2]
[420043792,1775631050127,-163.86569709,0.00013699,2]
[420043793,1775631050138,-500.0,0.00013699,2]
[420043794,1775631050148,-500.0,0.00013699,2]
[420043795,1775631050158,-500.0,0.00013699,2]
[420043796,1775631050168,-503.98766467,0.00013699,2]
[420043797,1775631050178,-290.88257095,0.00013699,2]
[420043798,1775631050187,-244.23047354,0.00013699,2]
[420043799,1775631050197,-500.32940014,0.00013699,2]
[420043800,1775631050207,-500.47050729,0.00013699,2]
[420043801,1775631050216,-500.0,0.00013699,2]
[420043802,1775631050226,-501.53334874,0.00013699,2]
[420043803,1775631050237,-500.0,0.00013699,2]
[420043804,1775631050246,-500.0,0.00013699,2]
[420043805,1775631050256,-500.0,0.00013699,2]
[420043806,1775631050266,-500.0,0.00013699,2]
[420043807,1775631050275,-500.0,0.00013699,2]
[420043808,1775631050286,-500.0,0.00013699,2]
[420043809,1775631050295,-288.28066678,0.00013699,2]
[420043810,1775631050305,-500.0,0.00013699,2]
[420043811,1775631050315,-500.0,0.00013699,2]
[420043812,1775631050324,-500.0,0.00013699,2]
[420043813,1775631050334,-474.64837932,0.00013699,2]
[420043814,1775631050345,-154.87,0.00013699,2]
[420043815,1775631050355,-964.0,0.00013699,2]
[420043816,1775631050365,-964.0,0.00013699,2]
[420043817,1775631050375,-964.0,0.00013699,2]
[420043818,1775631050385,-964.0,0.00013699,2]
[420043819,1775631050395,-964.0,0.00013699,2]
[420043820,1775631050405,-964.0,0.00013699,2]
[420043821,1775631050415,-964.0,0.00013699,2]
[420043822,1775631050424,-964.0,0.00013699,2]
[420043823,1775631050434,-964.0,0.00013699,2]
[420043824,1775631050444,-964.0,0.00013699,2]
[420043825,1775631050453,-964.0,0.00013699,2]
[420043826,1775631050464,-964.0,0.00013699,2]
[420043827,1775631050475,-964.0,0.00013699,2]
[420043828,1775631050485,-964.0,0.00013699,2]
[420043829,1775631050496,-964.0,0.00013699,2]
[420043830,1775631050506,-964.0,0.00013699,2]
[420043831,1775631050517,-964.0,0.00013699,2]
[420043832,1775631050529,-964.0,0.00013699,2]
[420043833,1775631050538,-964.0,0.00013699,2]
[420043834,1775631050548,-964.0,0.00013699,2]
[420043835,1775631050558,-964.0,0.00013699,2]
[420043836,1775631050568,-964.0,0.00013699,2]
[420043837,1775631050578,-964.0,0.00013699,2]
[420043838,1775631050588,-985.24465103,0.00013699,2]
[420043839,1775631050599,-1000.0,0.00013699,2]
[420043840,1775631050609,-1000.0,0.00013699,15]
[420043841,1775631050619,-610.24244207,0.00013814,2]
[420043842,1775631050629,-150.0,0.00013898,2]
[420043843,1775631050639,-150.0,0.00013898,2]
[420043844,1775631050649,-150.0,0.00013899,2]
[420043845,1775631050659,-1600.0,0.0001392,2]
[420043846,1775631050669,-150.0,0.00013973,2]
[420043847,1775631050680,-150.0,0.00013973,2]
[420043848,1775631050690,-150.0,0.00013973,2]
[420043849,1775631050700,-4733.74989347,0.0001399,2]
[420043850,1775631050710,-500.0,0.00014106,2]
[420043851,1775631050719,-500.0,0.00014106,2]
[420043852,1775631050729,-550.893243,0.0001414,7]
[420043853,1775631050739,-178.99,0.00014152,2]
[420043854,1775631050749,-150.0,0.00014247,2]
[420043855,1775631050759,-150.0,0.00014247,2]
[420043856,1775631050769,-1000.0,0.00014247,2]
[420043857,1775631050780,-501.42736732,0.00014247,2]
[420043858,1775631050789,-172.70630045,0.00014247,2]
[420043859,1775631050799,-882.1111067,0.00014247,2]
[420043860,1775631050810,-1000.0,0.00014247,2]
[420043861,1775631050820,-1000.0,0.00014247,2]
[420043862,1775631050829,-1000.0,0.00014247,2]
[420043863,1775631050839,-1000.0,0.00014247,2]
[420043864,1775631050849,-763.74027783,0.00014247,2]
[420043865,1775631050859,-1000.0,0.00014247,2]
[420043866,1775631050870,-1000.0,0.00014247,2]
[420043867,1775631050880,-1144.24089955,0.00014247,2]
[420043868,1775631050890,-1000.0,0.00014247,2]
[420043869,1775631050900,-242.46089406,0.00014247,2]
[420043870,1775631050910,-154.31,0.00014263,2]
[420043871,1775631050920,-2812.0,0.000144,2]
[420043872,1775631050930,-1152.0,0.00014508,2]
[420043873,1775631050940,-4609.0,0.00014508,2]
[420043874,1775631050950,-2000.0,0.00014563,2]
[420043875,1775631050961,-1000.0,0.00014654,2]
[420043877,1775631050970,-500.5739136,0.00014654,2]
[420043878,1775631050980,-571.272421,0.0001466,7]
[420043880,1775631050990,-2812.0,0.0001472,2]
[420043882,1775631051001,-1252.0,0.00014726,2]
[420043884,1775631051011,-250.0,0.00014795,2]
[420043886,1775631051021,-1500.0,0.00014795,2]
[420043888,1775631051031,-1500.0,0.00014795,2]
[420043890,1775631051041,-1500.0,0.00014795,2]
[420043892,1775631051051,-1500.0,0.00014795,2]
[420043894,1775631051061,-1500.0,0.00014795,2]
[420043896,1775631051071,-1500.0,0.00014795,2]
[420043898,1775631051081,-1500.0,0.00014795,2]
[420043900,1775631051091,-1500.0,0.00014795,2]
[420043902,1775631051100,-212.4137,0.000148,2]
[420043904,1775631051110,-504.974431,0.00014881,2]
[420043906,1775631051120,-300.0,0.00015,2]
[420043908,1775631051129,-390.38,0.00015068,2]
[420043910,1775631051139,-891.89335958,0.00015202,2]
[420043912,1775631051149,-2000.0,0.00015342,2]
[420043914,1775631051158,-1951.88193642,0.00015342,2]
[420043916,1775631051168,-2000.0,0.00015342,2]
[420043918,1775631051179,-2000.0,0.00015342,2]
[420043920,1775631051189,-503.63625007,0.00015342,2]
[420043922,1775631051198,-2000.0,0.00015342,2]
[420043924,1775631051209,-501.38361513,0.00015342,2]
[420043926,1775631051218,-1531.17708776,0.00015342,2]
[420043928,1775631051228,-154.31,0.00015452,2]
[420043930,1775631051237,-3034.76,0.00015471,2]
[420043932,1775631051247,-181.06375366,0.000157,7]
[420043934,1775631051257,-9781.697839,0.000157,2]
[420043936,1775631051267,-500.0,0.00015808,2]
[420043938,1775631051277,-500.0,0.00015808,2]
[420043939,1775631051286,-396.4808442,0.00015808,2]
[420043940,1775631051296,-500.0,0.0001589,2]
[420043941,1775631051306,-500.0,0.0001589,2]
[420043942,1775631051316,-177.05503597,0.0001589,2]
[420043943,1775631051326,-2000.0,0.0001589,2]
[420043944,1775631051336,-1502.28581045,0.0001589,2]
[420043945,1775631051346,-1346.46562521,0.0001589,2]
[420043946,1775631051356,-2500.0,0.0001589,2]
[420043947,1775631051366,-2500.0,0.0001589,2]
[420043948,1775631051376,-1613.0,0.00015959,2]
[420043949,1775631051387,-6453.0,0.00015959,2]
[420043950,1775631051396,-512.37,0.00016116,2]
[420043951,1775631051407,-5024.31,0.00016116,2]
[420043952,1775631051416,-1050.6,0.00016116,2]
[420043953,1775631051426,-9999.99,0.00016116,2]
[420043954,1775631051436,-2415.40296275,0.00016129,2]
[420043955,1775631051446,-238.5318,0.000162,2]
[420043956,1775631051456,-2129.0,0.00016204,2]
[420043957,1775631051466,-402.56716046,0.00016274,2]
[420043958,1775631051476,-402.56716046,0.00016435,2]
[420043959,1775631051486,-390.38,0.00016438,2]
[420043960,1775631051495,-3000.0,0.00016438,2]
[420043961,1775631051505,-3000.0,0.00016438,2]
[420043962,1775631051515,-578.20924308,0.00016496,2]
[420043963,1775631051525,-181.08010149,0.00016496,2]
[420043964,1775631051535,-623.58710448,0.00016496,2]
[420043965,1775631051545,-1235.18214925,0.00016496,2]
[420043966,1775631051555,-500.0,0.00016496,2]
[420043967,1775631051565,-200.0,0.00016496,2]
[420043968,1775631051575,-8260.13072239,0.00016496,2]
[420043969,1775631051585,-151.0,0.00016496,2]
[420043970,1775631051594,-151.0,0.00016496,2]
[420043971,1775631051604,-158.44511549,0.00016496,2]
[420043972,1775631051614,-181.08010149,0.00016496,2]
[420043973,1775631051623,-3000.0,0.00016496,2]
[420043974,1775631051633,-1000.0,0.00016496,2]
[420043975,1775631051643,-3000.0,0.00016496,2]
[420043976,1775631051653,-1000.0,0.00016496,2]
[420043977,1775631051663,-3000.0,0.00016496,2]
[420043978,1775631051673,-1000.0,0.00016496,2]
[420043979,1775631051683,-3000.0,0.00016496,2]
[420043980,1775631051693,-1000.0,0.00016496,2]
[420043981,1775631051703,-1000.0,0.00016496,2]
[420043982,1775631051713,-2620.91593184,0.00016496,2]
[420043983,1775631051723,-1000.0,0.00016496,2]
[420043984,1775631051732,-160.62835242,0.00016496,2]
[420043985,1775631051742,-1000.0,0.00016496,2]
[420043986,1775631052125,-1000.0,0.00016496,2]
[420043987,1775631052157,-1043.19678234,0.00016496,2]
[420043988,1775631052167,-151.0,0.00016496,2]
[420043989,1775631052177,-743.50770149,0.00016496,2]
[420043990,1775631052187,-174.61919141,0.00016496,2]
[420043991,1775631052196,-599.60298507,0.00016496,2]
[420043992,1775631052205,-181.08010149,0.00016496,2]
[420043993,1775631052215,-170.0,0.00016496,2]
[420043994,1775631052224,-170.0,0.00016496,2]
[420043995,1775631052234,-170.0,0.00016496,2]
[420043996,1775631052243,-170.0,0.00016496,2]
[420043997,1775631052253,-170.0,0.00016496,2]
[420043998,1775631052263,-285.62441693,0.00016496,2]
[420043999,1775631052273,-170.0,0.00016496,2]
[420044000,1775631052282,-170.0,0.00016496,2]
[420044001,1775631052291,-170.0,0.00016496,2]
[420044002,1775631052301,-170.0,0.00016496,2]
[420044003,1775631052310,-170.0,0.00016496,2]
[420044004,1775631052320,-170.0,0.00016496,2]
[420044005,1775631052330,-170.0,0.00016496,2]
[420044006,1775631052340,-170.0,0.00016496,2]
[420044007,1775631052349,-170.0,0.00016496,2]
[420044008,1775631052359,-170.0,0.00016496,2]
[420044009,1775631052369,-1500.0,0.00016496,2]
[420044010,1775631052379,-1532.75885711,0.00016496,2]
[420044011,1775631052391,-500.0,0.00016551,2]
[420044012,1775631052401,-4371.86931636,0.00016551,2]
[420044013,1775631052411,-151.0,0.00016551,2]
[420044014,1775631052422,-402.56716046,0.00016597,2]
[420044015,1775631052432,-500.0,0.00016606,2]
[420044016,1775631052443,-151.0,0.00016606,2]
[420044017,1775631052452,-178.99,0.00016613,2]
[420044018,1775631052462,-154.31,0.0001664,2]
[420044019,1775631052472,-500.0,0.00016661,2]
[420044020,1775631052481,-151.0,0.00016661,2]
[420044021,1775631052491,-234.01,0.00016712,2]
[420044022,1775631052500,-500.0,0.00016716,2]
[420044023,1775631052510,-151.0,0.00016716,2]
[420044024,1775631052520,-500.0,0.00016771,2]
[420044025,1775631052530,-151.0,0.00016771,2]
[420044026,1775631052539,-155.49037491,0.00016812,2]
[420044027,1775631052549,-500.0,0.00016826,2]
[420044028,1775631052559,-151.0,0.00016826,2]
[420044029,1775631052569,-500.0,0.00016881,2]
[420044030,1775631052581,-151.0,0.00016881,2]
[420044031,1775631052591,-500.0,0.00016936,2]
[420044032,1775631052601,-151.0,0.00016936,2]
[420044033,1775631052610,-1111.00026293,0.00016986,2]
[420044034,1775631052621,-2005.70956127,0.00016986,2]
[420044035,1775631052631,-500.0,0.00016991,2]
[420044036,1775631052642,-151.0,0.00016991,2]
[420044037,1775631052653,-350.0,0.00017,2]
[420044038,1775631052664,-160.0,0.00017,7]
[420044039,1775631052674,-187.78006525,0.00017044,2]
[420044040,1775631052684,-1280.88388878,0.00017044,2]
[420044041,1775631052694,-200.0,0.00017044,2]
[420044042,1775631052704,-771.01748645,0.00017044,2]
[420044043,1775631052715,-181.08010149,0.00017044,2]
[420044044,1775631052725,-591.41950389,0.00017044,2]
[420044045,1775631052735,-500.0,0.00017046,2]
[420044046,1775631052745,-151.0,0.00017046,2]
[420044047,1775631052755,-500.0,0.00017101,2]
[420044048,1775631052765,-151.0,0.00017101,2]
[420044049,1775631052775,-500.0,0.00017156,2]
[420044050,1775631052785,-151.0,0.00017156,2]
[420044051,1775631052795,-500.0,0.00017211,2]
[420044052,1775631052805,-151.0,0.00017211,2]
[420044053,1775631052815,-786.02,0.00017225,2]
[420044054,1775631052825,-500.0,0.00017266,2]
[420044055,1775631052835,-151.0,0.00017266,2]
[420044056,1775631052845,-985.91,0.00017354,2]
[420044057,1775631052855,-2000.0,0.00017365,2]
[420044058,1775631052865,-610.24244207,0.00017431,2]
[420044059,1775631052875,-766.01,0.00017499,2]
[420044060,1775631052886,-267.8614,0.000175,2]
[420044061,1775631052896,-9035.0,0.00017555,2]
[420044062,1775631052906,-2258.0,0.00017555,2]
[420044063,1775631052916,-194.72792766,0.00017592,2]
[420044064,1775631052927,-200.0,0.00017592,2]
[420044065,1775631052936,-1328.27659266,0.00017592,2]
[420044066,1775631052946,-799.54513345,0.00017592,2]
[420044067,1775631052956,-187.78006525,0.00017592,2]
[420044068,1775631052967,-987.75,0.00017628,2]
[420044069,1775631052976,-1537.0,0.00017638,2]
[420044070,1775631052986,-2023.17,0.00017728,2]
[420044071,1775631052997,-412.44,0.00017728,2]
[420044072,1775631053006,-3349.54,0.00017728,2]
[420044073,1775631053016,-720.37,0.00017728,2]
[420044074,1775631053027,-3620.0,0.00017823,2]
[420044075,1775631053037,-154.31,0.00017829,2]
[420044076,1775631053047,-150.0,0.00018115,2]
[420044077,1775631053057,-200.0,0.0001814,2]
[420044078,1775631053066,-1377.42282659,0.0001814,2]
[420044079,1775631053077,-201.93286099,0.0001814,2]